fUSD/lending_fUSD_20240929
["ID","MTS","AMOUNT","RATE_DAILY","PERIOD"]
[339455882,1727620236685,-504.8825794,0.00010986,2]
[339455883,1727620236695,-3470.0,0.00010986,2]
[339455884,1727620236704,-500.0,0.00010993,2]
[339455885,1727620236714,-1959.98,0.00010994,2]
[339455886,1727620236723,-1191.26795605,0.00010994,2]
[339455887,1727620236742,-972.20204395,0.00010994,2]
[339455888,1727620236751,-210.53504569,0.00010994,2]
[339455889,1727620236763,-603.03497768,0.00010994,2]
[339455890,1727620236791,-148.59997663,0.00010994,2]
[339455891,1727620236800,-500.0,0.00010994,2]
[339455892,1727620236811,-500.0,0.00010994,2]
[339455893,1727620236821,-805.92,0.00010994,2]
[339455894,1727620236831,-1072.45,0.00010994,2]
[339455895,1727620236844,-500.0,0.00010994,2]
[339455896,1727620236854,-1521.51,0.00010994,2]
[339455897,1727620236863,-98.84229757,0.00010994,2]
[339455898,1727620236875,-319.78827631,0.00010994,2]
[339455899,1727620236888,-81.36942612,0.00010994,2]
[339455900,1727620236898,-941.99582635,0.00010994,2]
[339455901,1727620236909,-634.90417365,0.00010994,2]
[339455902,1727620236920,-61.87014237,0.00010994,2]
[339455903,1727620236934,-315.40449296,0.00010994,2]
[339455904,1727620236945,-2135.8388,0.00010994,2]
[339455905,1727620236957,-29.87656467,0.00010994,2]
[339455906,1727620236967,-500.0,0.00010994,2]
[339455907,1727620236977,-500.0,0.00010994,2]
[339455908,1727620236987,-1367.31,0.00010994,2]
[339455909,1727620236996,-500.0,0.00010994,2]
[339455910,1727620237006,-500.0,0.00010994,2]
[339455911,1727620237016,-1144.56,0.00010994,2]
[339455912,1727620237025,-500.0,0.00010994,2]
[339455913,1727620237035,-1347.97,0.00010994,2]
[339455914,1727620237044,-500.0,0.00010994,2]
[339455915,1727620237054,-500.0,0.00010994,2]
[339455916,1727620237064,-530.58,0.00010994,2]
[339455917,1727620237073,-500.0,0.00010994,2]
[339455918,1727620237083,-721.89,0.00010994,2]
[339455919,1727620237092,-500.0,0.00010994,2]
[339455920,1727620237102,-500.0,0.00010994,2]
[339455921,1727620237111,-410.50353493,0.00010994,2]
[339455922,1727620237149,-539.94646507,0.00010994,2]
[339455923,1727620237158,-500.0,0.00010995,2]
[339455924,1727620237167,-500.0,0.00010995,2]
[339455925,1727620237176,-500.0,0.00010995,2]
[339455926,1727620237186,-500.0,0.00010995,2]
[339455927,1727620237195,-1002.68,0.00010995,2]
[339455928,1727620237204,-584.66,0.00010995,2]
[339455929,1727620237215,-1473.38,0.00010995,2]
[339455930,1727620237224,-1205.96,0.00010995,2]
[339455931,1727620237233,-1649.31,0.00010995,2]
[339455932,1727620237243,-500.0,0.00010995,2]
[339455933,1727620237252,-500.0,0.00010995,2]
[339455934,1727620237261,-500.0,0.00010995,2]
[339455935,1727620237270,-500.0,0.00010995,2]
[339455936,1727620237279,-500.0,0.00010995,2]
[339455937,1727620237289,-269.91410276,0.00010995,2]
[339455938,1727620237298,-500.0,0.00010995,2]
[339455939,1727620237307,-500.0,0.00010995,2]
[339455940,1727620237317,-196.91964158,0.00010995,2]
[339455941,1727620237326,-520.87093642,0.00010995,2]
[339455942,1727620237335,-331.62016992,0.00010995,2]
[339455943,1727620237344,-478.7603227,0.00010995,2]
[339455944,1727620237353,-500.0,0.00010995,2]
[339455945,1727620237363,-889.44,0.00010995,2]
[339455946,1727620237372,-1036.79,0.00010995,2]
[339455947,1727620237381,-2787.62,0.00010995,2]
[339455948,1727620237390,-1528.72,0.00010995,2]
[339455949,1727620237399,-665.25,0.00010995,2]
[339455950,1727620237409,-874.65,0.00010995,2]
[339455951,1727620237418,-234.15626571,0.00010995,2]
[339455952,1727620237427,-722.8,0.00010995,2]
[339455953,1727620237437,-500.0,0.00010995,2]
[339455954,1727620237446,-1384.8,0.00010995,2]
[339455955,1727620237456,-531.45,0.00010995,2]
[339455956,1727620237466,-500.0,0.00010995,2]
[339455957,1727620237476,-500.0,0.00010995,2]
[339455958,1727620237485,-500.0,0.00010995,2]
[339455959,1727620237495,-500.0,0.00010995,2]
[339455960,1727620237504,-2774.67,0.00010995,2]
[339455961,1727620237513,-1914.94,0.00010995,2]
[339455962,1727620237523,-500.19,0.00010995,2]
[339455963,1727620237531,-995.58,0.00010995,2]
[339455964,1727620237541,-500.0,0.00010995,2]
[339455965,1727620237550,-1288.81,0.00010995,2]
[339455966,1727620237559,-619.83,0.00010995,2]
[339455967,1727620237569,-500.0,0.00010995,2]
[339455968,1727620237578,-500.0,0.00010995,2]
[339455969,1727620237588,-911.87,0.00010995,2]
[339455970,1727620237597,-1959.98,0.00010995,2]
[339455971,1727620237606,-522.35,0.00010995,2]
[339455972,1727620237615,-500.0,0.00010995,2]
[339455973,1727620237624,-2163.47,0.00010995,2]
[339455974,1727620237633,-1353.11,0.00010995,2]
[339455975,1727620237643,-962.17,0.00010995,2]
[339455976,1727620237652,-1234.06,0.00010995,2]
[339455977,1727620237661,-185.22507349,0.00010995,2]
[339455978,1727620237670,-500.0,0.00010995,2]
[339455979,1727620237679,-500.0,0.00010995,2]
[339455980,1727620237689,-917.44,0.00010995,2]
[339455981,1727620237701,-702.11,0.00010995,2]
[339455982,1727620237711,-500.0,0.00010995,2]
[339455983,1727620237720,-500.0,0.00010995,2]
[339455984,1727620237729,-500.0,0.00010995,2]
[339455985,1727620237738,-620.08,0.00010995,2]
[339455986,1727620237747,-620.08,0.00010995,2]
[339455987,1727620237756,-500.0,0.00010995,2]
[339455988,1727620237765,-1250.1,0.00010995,2]
[339455989,1727620237775,-805.92,0.00010995,2]
[339455990,1727620237784,-500.0,0.00010995,2]
[339455991,1727620237793,-500.0,0.00010995,2]
[339455992,1727620237802,-1072.45,0.00010995,2]
[339455993,1727620237811,-1153.91,0.00010995,2]
[339455994,1727620237820,-2119.17,0.00010995,2]
[339455995,1727620237829,-1521.51,0.00010995,2]
[339455996,1727620237839,-500.0,0.00010995,2]
[339455997,1727620237852,-605.45,0.00010995,2]
[339455998,1727620237863,-605.45,0.00010995,2]
[339455999,1727620237872,-500.0,0.00010995,2]
[339456000,1727620238077,-500.0,0.00010995,2]
[339456001,1727620238086,-720.52,0.00010995,2]
[339456002,1727620238095,-1576.9,0.00010995,2]
[339456003,1727620238104,-2542.99,0.00010995,2]
[339456005,1727620238114,-628.25,0.00010995,2]
[339456006,1727620238122,-628.25,0.00010995,2]
[339456007,1727620238132,-500.0,0.00010995,2]
[339456008,1727620238142,-1100.29,0.00010995,2]
[339456009,1727620238151,-1100.29,0.00010995,2]
[339456010,1727620238161,-573.54,0.00010995,2]
[339456011,1727620238170,-500.0,0.00010995,2]
[339456012,1727620238179,-500.0,0.00010995,2]
[339456013,1727620238189,-500.0,0.00010995,2]
[339456014,1727620238198,-500.0,0.00010995,2]
[339456015,1727620238207,-500.0,0.00010995,2]
[339456016,1727620238217,-500.0,0.00010995,2]
[339456017,1727620238226,-500.0,0.00010995,2]
[339456018,1727620238235,-319.09084368,0.00010995,2]
[339456019,1727620238245,-2026.62,0.00010995,2]
[339456020,1727620238254,-2026.62,0.00010995,2]
[339456021,1727620238264,-1367.31,0.00010995,2]
[339456022,1727620238273,-500.0,0.00010995,2]
[339456023,1727620238283,-500.0,0.00010995,2]
[339456024,1727620238294,-500.0,0.00010995,2]
[339456025,1727620238303,-500.0,0.00010995,2]
[339456026,1727620238314,-1144.56,0.00010995,2]
[339456027,1727620238324,-500.0,0.00010995,2]
[339456028,1727620238334,-666.45,0.00010995,2]
[339456029,1727620238344,-666.45,0.00010995,2]
[339456030,1727620238353,-500.0,0.00010995,2]
[339456032,1727620238363,-567.38,0.00010995,2]
[339456034,1727620238373,-567.38,0.00010995,2]
[339456036,1727620238382,-500.0,0.00010995,2]
[339456037,1727620238392,-500.0,0.00010995,2]
[339456038,1727620238402,-1347.97,0.00010995,2]
[339456039,1727620238412,-500.0,0.00010995,2]
[339456040,1727620238422,-500.0,0.00010995,2]
[339456041,1727620238432,-439.78824924,0.00010995,2]
[339456042,1727620238442,-500.0,0.00010995,2]
[339456043,1727620238451,-500.0,0.00010995,2]
[339456044,1727620238461,-560.35,0.00010995,2]
[339456045,1727620238471,-560.35,0.00010995,2]
[339456046,1727620238480,-1412.07,0.00010995,2]
[339456047,1727620238490,-1412.07,0.00010995,2]
[339456048,1727620238499,-530.58,0.00010995,2]
[339456049,1727620238510,-500.0,0.00010995,2]
[339456050,1727620238519,-1096.64,0.00010995,2]
[339456051,1727620238529,-1096.64,0.00010995,2]
[339456052,1727620238539,-500.0,0.00010995,2]
[339456053,1727620238548,-500.0,0.00010995,2]
[339456054,1727620238558,-500.0,0.00010995,2]
[339456055,1727620238568,-500.0,0.00010995,2]
[339456056,1727620238578,-787.32,0.00010995,2]
[339456057,1727620238587,-787.32,0.00010995,2]
[339456058,1727620238597,-787.32,0.00010995,2]
[339456059,1727620238606,-721.89,0.00010995,2]
[339456060,1727620238616,-663.81,0.00010995,2]
[339456061,1727620238626,-994.16,0.00010995,2]
[339456062,1727620238635,-994.16,0.00010995,2]
[339456063,1727620238644,-663.81,0.00010995,2]
[339456064,1727620238654,-994.16,0.00010995,2]
[339456065,1727620238665,-500.0,0.00010995,2]
[339456066,1727620238674,-500.0,0.00010995,2]
[339456067,1727620238684,-511.05,0.00010995,2]
[339456068,1727620238694,-267.86588433,0.00010995,2]
[339456069,1727620238703,-500.0,0.00010995,2]
[339456070,1727620238713,-500.0,0.00010995,2]
[339456071,1727620238722,-500.0,0.00010995,2]
[339456072,1727620238732,-685.72,0.00010995,2]
[339456073,1727620238741,-500.0,0.00010995,2]
[339456074,1727620238751,-500.0,0.00010995,2]
[339456075,1727620238761,-685.72,0.00010995,2]
[339456076,1727620238770,-500.0,0.00010995,2]
[339456077,1727620238779,-685.72,0.00010995,2]
[339456078,1727620238789,-500.0,0.00010995,2]
[339456079,1727620238798,-500.0,0.00010995,2]
[339456080,1727620238808,-500.0,0.00010995,2]
[339456081,1727620238817,-500.0,0.00010995,2]
[339456082,1727620238827,-428.08288352,0.00010995,2]
[339456083,1727620238837,-950.45,0.00010995,2]
[339456084,1727620238849,-500.0,0.00010996,2]
[339456085,1727620238859,-504.76248201,0.00010996,2]
[339456086,1727620238869,-500.0,0.00010996,2]
[339456087,1727620238879,-500.0,0.00010996,2]
[339456088,1727620238891,-500.0,0.00010996,2]
[339456089,1727620238900,-500.0,0.00010996,2]
[339456090,1727620238910,-500.0,0.00010996,2]
[339456091,1727620238920,-500.0,0.00010996,2]
[339456092,1727620238931,-500.0,0.00010996,2]
[339456093,1727620238942,-500.0,0.00010996,2]
[339456094,1727620238951,-500.0,0.00010996,2]
[339456095,1727620238962,-500.0,0.00010996,2]
[339456096,1727620238972,-500.0,0.00010996,2]
[339456097,1727620238981,-500.0,0.00010996,2]
[339456098,1727620238990,-500.0,0.00010996,2]
[339456099,1727620239000,-500.0,0.00010996,2]
[339456100,1727620239009,-500.0,0.00010996,2]
[339456101,1727620239019,-500.0,0.00010996,2]
[339456102,1727620239029,-500.0,0.00010996,2]
[339456103,1727620239038,-500.0,0.00010996,2]
[339456104,1727620239047,-500.0,0.00010996,2]
[339456105,1727620239056,-500.0,0.00010996,2]
[339456106,1727620239065,-500.0,0.00010996,2]
[339456107,1727620239074,-500.0,0.00010996,2]
[339456108,1727620239084,-500.0,0.00010996,2]
[339456109,1727620239094,-500.0,0.00010996,2]
[339456110,1727620239104,-500.0,0.00010996,2]
[339456111,1727620239114,-500.0,0.00010996,2]
[339456112,1727620239124,-500.0,0.00010996,2]
[339456113,1727620239134,-500.0,0.00010996,2]
[339456114,1727620239143,-500.0,0.00010996,2]
[339456115,1727620239153,-500.0,0.00010996,2]
[339456116,1727620239162,-500.0,0.00010996,2]
[339456117,1727620239172,-500.0,0.00010996,2]
[339456118,1727620239182,-500.0,0.00010996,2]
[339456119,1727620239191,-500.0,0.00010996,2]
[339456120,1727620239200,-500.0,0.00010996,2]
[339456121,1727620239210,-500.0,0.00010996,2]
[339456122,1727620239219,-500.0,0.00010996,2]
[339456123,1727620239228,-500.0,0.00010996,2]
[339456124,1727620239238,-500.0,0.00010996,2]
[339456125,1727620239247,-500.0,0.00010996,2]
[339456126,1727620239257,-500.0,0.00010996,2]
[339456127,1727620239266,-500.0,0.00010996,2]
[339456128,1727620239276,-500.0,0.00010996,2]
[339456129,1727620239285,-500.0,0.00010996,2]
[339456130,1727620239295,-500.0,0.00010996,2]
[339456131,1727620239304,-500.0,0.00010996,2]
[339456132,1727620239313,-500.0,0.00010996,2]
[339456133,1727620239323,-500.0,0.00010996,2]
[339456134,1727620239332,-500.0,0.00010996,2]
[339456135,1727620239342,-500.0,0.00010996,2]
[339456136,1727620239353,-500.0,0.00010996,2]
[339456137,1727620239363,-500.0,0.00010996,2]
[339456138,1727620239372,-500.0,0.00010996,2]
[339456139,1727620239382,-500.0,0.00010996,2]
[339456140,1727620239392,-500.0,0.00010996,2]
[339456141,1727620239402,-500.0,0.00010996,2]
[339456142,1727620239412,-500.0,0.00010996,2]
[339456143,1727620239421,-500.0,0.00010996,2]
[339456144,1727620239431,-500.0,0.00010996,2]
[339456145,1727620239440,-500.0,0.00010996,2]
[339456146,1727620239450,-500.0,0.00010996,2]
[339456147,1727620239460,-500.0,0.00010996,2]
[339456148,1727620239470,-1027.7,0.00010996,2]
[339456149,1727620239480,-500.0,0.00010996,2]
[339456150,1727620239489,-702.66,0.00010996,2]
[339456151,1727620239499,-500.0,0.00010996,2]
[339456152,1727620239509,-524.75,0.00010996,2]
[339456153,1727620239519,-500.0,0.00010996,2]
[339456154,1727620239529,-500.0,0.00010996,2]
[339456155,1727620239538,-735.96,0.00010996,2]
[339456156,1727620239548,-500.0,0.00010996,2]
[339456157,1727620239558,-500.0,0.00010996,2]
[339456158,1727620239568,-1077.88,0.00010996,2]
[339456159,1727620239577,-500.0,0.00010996,2]
[339456160,1727620239587,-636.3,0.00010996,2]
[339456161,1727620239596,-500.0,0.00010996,2]
[339456162,1727620239606,-913.48,0.00010996,2]
[339456163,1727620239616,-500.0,0.00010996,2]
[339456164,1727620239625,-552.86,0.00010996,2]
[339456165,1727620239635,-500.0,0.00010996,2]
[339456166,1727620239644,-216.47854805,0.00010996,2]
[339456167,1727620239654,-226.84908461,0.00010996,2]
[339456168,1727620239663,-500.0,0.00010996,2]
[339456169,1727620239673,-506.55,0.00010996,2]
[339456170,1727620239683,-500.0,0.00010996,2]
[339456171,1727620239692,-587.77,0.00010996,2]
[339456172,1727620239702,-500.0,0.00010996,2]
[339456173,1727620239711,-553.32,0.00010996,2]
[339456174,1727620239721,-500.0,0.00010996,2]
[339456175,1727620239731,-500.0,0.00010996,2]
[339456176,1727620239740,-500.0,0.00010996,2]
[339456177,1727620239750,-500.0,0.00010996,2]
[339456178,1727620239759,-500.0,0.00010996,2]
[339456179,1727620239768,-500.0,0.00010996,2]
[339456180,1727620239777,-580.27,0.00010996,2]
[339456181,1727620239787,-500.0,0.00010996,2]
[339456182,1727620239796,-500.0,0.00010996,2]
[339456183,1727620239806,-1215.88,0.00010996,2]
[339456184,1727620239815,-500.0,0.00010996,2]
[339456185,1727620239824,-500.0,0.00010996,2]
[339456186,1727620239833,-500.0,0.00010996,2]
[339456187,1727620239843,-916.34,0.00010996,2]
[339456188,1727620239855,-641.21,0.00010996,2]
[339456189,1727620239865,-500.0,0.00010996,2]
[339456190,1727620239874,-500.0,0.00010996,2]
[339456191,1727620239884,-1261.83,0.00010996,2]
[339456192,1727620239894,-500.0,0.00010996,2]
[339456193,1727620239904,-500.0,0.00010996,2]
[339456194,1727620239914,-500.0,0.00010996,2]
[339456195,1727620239925,-500.0,0.00010996,2]
[339456196,1727620239934,-828.77,0.00010996,2]
[339456197,1727620239944,-500.0,0.00010996,2]
[339456198,1727620239954,-504.88551468,0.00010996,2]
[339456199,1727620239964,-755.86,0.00010996,2]
[339456200,1727620239974,-755.86,0.00010996,2]
[339456201,1727620239983,-755.86,0.00010996,2]
[339456202,1727620239993,-500.0,0.00010996,2]
[339456203,1727620240003,-779.08,0.00010996,2]
[339456204,1727620240012,-501.03314013,0.00010996,2]
[339456205,1727620240022,-500.0,0.00010996,2]
[339456206,1727620240032,-500.0,0.00010996,2]
[339456207,1727620240042,-500.0,0.00010996,2]
[339456208,1727620240052,-500.0,0.00010996,2]
[339456209,1727620240062,-500.0,0.00010996,2]
[339456210,1727620240071,-839.67,0.00010996,2]
[339456211,1727620240080,-500.0,0.00010996,2]
[339456213,1727620240090,-839.67,0.00010996,2]
[339456214,1727620240099,-493.97760412,0.00010996,2]
[339456215,1727620240109,-839.67,0.00010996,2]
[339456216,1727620240119,-978.93,0.00010996,2]
[339456217,1727620240128,-500.0,0.00010996,2]
[339456218,1727620240137,-500.0,0.00010996,2]
[339456219,1727620240148,-500.0,0.00010996,2]
[339456220,1727620240158,-698.1,0.00010996,2]
[339456221,1727620240167,-500.0,0.00010996,2]
[339456222,1727620240177,-500.0,0.00010996,2]
[339456223,1727620240187,-500.0,0.00010996,2]
[339456224,1727620240196,-500.0,0.00010996,2]
[339456225,1727620240206,-500.0,0.00010996,2]
[339456226,1727620240216,-500.0,0.00010996,2]
[339456227,1727620240225,-500.0,0.00010996,2]
[339456228,1727620240235,-500.0,0.00010996,2]
[339456229,1727620240244,-500.0,0.00010996,2]
[339456230,1727620240254,-500.0,0.00010996,2]
[339456231,1727620240264,-500.0,0.00010996,2]
[339456232,1727620240274,-501.6801536,0.00010996,2]
[339456233,1727620240283,-500.0,0.00010996,2]
[339456234,1727620240292,-500.0,0.00010996,2]
[339456235,1727620240302,-500.0,0.00010996,2]
[339456236,1727620240311,-500.0,0.00010996,2]
[339456237,1727620240321,-500.0,0.00010996,2]
[339456238,1727620240330,-500.0,0.00010996,2]
[339456239,1727620240340,-500.0,0.00010996,2]
[339456240,1727620240349,-500.0,0.00010996,2]
[339456241,1727620240358,-500.0,0.00010996,2]
[339456242,1727620240368,-370.79929252,0.00010996,2]
[339456243,1727620240377,-500.0,0.00010996,2]
[339456244,1727620240386,-502.45835863,0.00010996,2]
[339456245,1727620240396,-500.0,0.00010996,2]
[339456246,1727620240464,-500.0,0.00010996,2]
[339456247,1727620240473,-500.0,0.00010996,2]
[339456248,1727620240483,-500.0,0.00010996,2]
[339456249,1727620240492,-836.64,0.00010996,2]
[339456250,1727620240501,-500.0,0.00010996,2]
[339456251,1727620240511,-501.32988244,0.00010996,2]
[339456252,1727620240522,-500.27927127,0.00010996,2]
[339456253,1727620240532,-500.0,0.00010996,2]
[339456254,1727620240541,-293.38361404,0.00010996,2]
[339456255,1727620240551,-500.0,0.00010996,2]
[339456256,1727620240561,-500.0,0.00010996,2]
[339456257,1727620240571,-500.0,0.00010996,2]
[339456258,1727620240581,-500.0,0.00010996,2]
[339456259,1727620240590,-500.0,0.00010996,2]
[339456260,1727620240599,-500.0,0.00010996,2]
[339456261,1727620240609,-500.0,0.00010996,2]
[339456262,1727620240618,-500.0,0.00010996,2]
[339456263,1727620240628,-500.0,0.00010996,2]
[339456264,1727620240637,-500.0,0.00010996,2]
[339456265,1727620240646,-500.0,0.00010996,2]
[339456266,1727620240656,-500.99411166,0.00010996,2]
[339456267,1727620240666,-500.0,0.00010996,2]
[339456268,1727620240676,-524.43,0.00010996,2]
[339456269,1727620240687,-500.0,0.00010996,2]
[339456270,1727620240696,-592.46,0.00010996,2]
[339456271,1727620240706,-163.3154786,0.00010996,2]
[339456272,1727620240716,-500.0,0.00010996,2]
[339456273,1727620240725,-456.16659363,0.00010996,2]
[339456275,1727620240735,-1002.68,0.00010996,2]
[339456277,1727620240745,-1002.68,0.00010996,2]
[339456279,1727620240754,-1002.68,0.00010996,2]
[339456281,1727620240763,-500.0,0.00010996,2]
[339456283,1727620240773,-500.0,0.00010996,2]
[339456285,1727620240783,-500.0,0.00010996,2]
[339456287,1727620240793,-514.1673465,0.00010996,2]
[339456289,1727620240802,-500.0,0.00010996,2]
[339456291,1727620240812,-556.41679119,0.00010996,2]
[339456293,1727620240821,-500.09,0.00010996,2]
[339456295,1727620240831,-500.0,0.00010996,2]
[339456297,1727620240840,-500.0,0.00010996,2]
[339456299,1727620240852,-500.0,0.00010996,2]
[339456301,1727620240861,-500.0,0.00010996,2]
[339456302,1727620240869,-505.58529741,0.00010996,2]
[339456304,1727620240879,-584.66,0.00010996,2]
[339456306,1727620240889,-584.66,0.00010996,2]
[339456308,1727620240898,-584.66,0.00010996,2]
[339456310,1727620240907,-500.0,0.00010996,2]
[339456312,1727620240917,-500.0,0.00010996,2]
[339456314,1727620240928,-500.0,0.00010996,2]
[339456316,1727620240939,-500.0,0.00010996,2]
[339456318,1727620240947,-923.05,0.00010996,2]
[339456320,1727620240957,-923.05,0.00010996,2]
[339456321,1727620240967,-923.05,0.00010996,2]
[339456323,1727620240976,-500.0,0.00010996,2]
[339456325,1727620240986,-557.68,0.00010996,2]
[339456327,1727620240996,-500.0,0.00010996,2]
[339456329,1727620241005,-500.0,0.00010996,2]
[339456331,1727620241015,-500.0,0.00010996,2]
[339456333,1727620241024,-500.0,0.00010996,2]
[339456335,1727620241033,-1473.38,0.00010996,2]
[339456337,1727620241043,-1473.38,0.00010996,2]
[339456339,1727620241052,-577.69533298,0.00010996,2]
[339456341,1727620241061,-1473.38,0.00010996,2]
[339456343,1727620241071,-500.0,0.00010996,2]
[339456345,1727620241081,-500.0,0.00010996,2]
[339456347,1727620241090,-1457.57,0.00010996,2]
[339456348,1727620241099,-1457.57,0.00010996,2]
[339456350,1727620241108,-1457.57,0.00010996,2]
[339456352,1727620241118,-500.0,0.00010996,2]
[339456354,1727620241127,-500.0,0.00010996,2]
[339456356,1727620241136,-500.0,0.00010996,2]
[339456358,1727620241146,-1205.96,0.00010996,2]
[339456360,1727620241155,-1205.96,0.00010996,2]
[339456362,1727620241164,-1205.96,0.00010996,2]
[339456363,1727620241174,-500.0,0.00010996,2]
[339456364,1727620241184,-500.0,0.00010996,2]
[339456365,1727620241193,-500.0,0.00010996,2]
[339456366,1727620241202,-500.0,0.00010996,2]
[339456367,1727620241211,-767.73,0.00010996,2]
[339456368,1727620241221,-1649.31,0.00010996,2]
[339456369,1727620241231,-1649.31,0.00010996,2]
[339456370,1727620241240,-1649.31,0.00010996,2]
[339456371,1727620241249,-897.48,0.00010996,2]
[339456372,1727620241259,-500.0,0.00010996,2]
[339456373,1727620241268,-1361.61,0.00010996,2]
[339456374,1727620241278,-500.0,0.00010996,2]
[339456375,1727620241288,-1361.61,0.00010996,2]
[339456376,1727620241297,-1361.61,0.00010996,2]
[339456377,1727620241307,-500.0,0.00010996,2]
[339456378,1727620241316,-509.78221124,0.00010996,2]
[339456379,1727620241326,-500.0,0.00010996,2]
[339456380,1727620241334,-500.0,0.00010996,2]
[339456381,1727620241344,-500.0,0.00010996,2]
[339456382,1727620241353,-500.0,0.00010996,2]
[339456383,1727620241362,-500.0,0.00010996,2]
[339456384,1727620241371,-500.0,0.00010996,2]
[339456385,1727620241381,-500.0,0.00010996,2]
[339456386,1727620241390,-500.0,0.00010996,2]
[339456387,1727620241399,-501.19212223,0.00010996,2]
[339456388,1727620241409,-500.0,0.00010996,2]
[339456389,1727620241419,-503.86860487,0.00010996,2]
[339456390,1727620241429,-526.62944414,0.00010996,2]
[339456391,1727620241438,-500.0,0.00010996,2]
[339456392,1727620241447,-500.0,0.00010996,2]
[339456393,1727620241456,-500.0,0.00010996,2]
[339456394,1727620241467,-500.0,0.00010996,2]
[339456395,1727620241477,-628.51102757,0.00010996,2]
[339456396,1727620241486,-500.0,0.00010996,2]
[339456397,1727620241496,-500.0,0.00010996,2]
[339456398,1727620241506,-500.0,0.00010996,2]
[339456399,1727620241516,-500.0,0.00010996,2]
[339456400,1727620241526,-500.0,0.00010996,2]
[339456401,1727620241536,-505.97586794,0.00010996,2]
[339456402,1727620241546,-500.0,0.00010996,2]
[339456403,1727620241556,-500.0,0.00010996,2]
[339456404,1727620241566,-500.0,0.00010996,2]
[339456405,1727620241575,-500.0,0.00010996,2]
[339456406,1727620241584,-500.0,0.00010996,2]
[339456407,1727620241594,-500.0,0.00010996,2]
[339456408,1727620241603,-500.0,0.00010996,2]
[339456409,1727620241613,-152.6309411,0.00010996,2]
[339456410,1727620241622,-500.0,0.00010996,2]
[339456411,1727620241631,-500.0,0.00010996,2]
[339456412,1727620241641,-500.0,0.00010996,2]
[339456413,1727620241650,-500.0,0.00010996,2]
[339456414,1727620241659,-500.0,0.00010996,2]
[339456415,1727620241668,-500.0,0.00010996,2]
[339456416,1727620241677,-500.0,0.00010996,2]
[339456417,1727620241687,-500.0,0.00010996,2]
[339456418,1727620241696,-500.0,0.00010996,2]
[339456419,1727620241706,-500.0,0.00010996,2]
[339456420,1727620241717,-500.0,0.00010996,2]
[339456421,1727620241726,-500.0,0.00010996,2]
[339456422,1727620241735,-500.0,0.00010996,2]
[339456423,1727620241744,-500.0,0.00010996,2]
[339456424,1727620241753,-503.97229795,0.00010996,2]
[339456425,1727620241763,-500.0,0.00010996,2]
[339456426,1727620241771,-500.0,0.00010996,2]
[339456427,1727620241781,-500.0,0.00010996,2]
[339456428,1727620241790,-500.0,0.00010996,2]
[339456429,1727620241799,-500.0,0.00010996,2]